[Event "Titled Tuesday Blitz May 4 2021"]
[White "Kusa, Jakub"]
[Black "katchesskat"]
[WhiteFideId "395595"]
[WhiteElo "2053"]
[BlackElo "2273"]
[Result "0-1"]
[Round "02"]
[TimeControl "180+1"]
[Date "2021.05.04"]
[WhiteClock "0:00:01"]
[BlackClock "0:00:49"]

1. e4 {[%clk 0:03:00]}  c5 {[%clk 0:03:00]} 2. Nf3 {[%clk 0:03:00]}  e6 {[%clk 0:03:00]} 3. g3 {[%clk 0:02:59]}  a6 {[%clk 0:02:59]} 4. Bg2 {[%clk 0:02:58]}  b5 {[%clk 0:02:59]} 5. O-O {[%clk 0:02:54]}  Bb7 {[%clk 0:02:59]} 6. a4 {[%clk 0:02:54]}  Bxe4 {[%clk 0:02:57]} 7. Nc3 {[%clk 0:02:38]}  Bc6 {[%clk 0:02:54]} 8. axb5 {[%clk 0:02:37]}  axb5 {[%clk 0:02:53]} 9. Rxa8 {[%clk 0:02:37]}  Bxa8 {[%clk 0:02:52]} 10. Nxb5 {[%clk 0:02:37]}  Qb6 {[%clk 0:02:52]} 11. Nc3 {[%clk 0:02:36]}  Nf6 {[%clk 0:02:52]} 12. d3 {[%clk 0:02:35]}  d5 {[%clk 0:02:49]} 13. b3 {[%clk 0:02:31]}  Bd6 {[%clk 0:02:39]} 14. Bb2 {[%clk 0:02:17]}  d4 {[%clk 0:02:32]} 15. Na4 {[%clk 0:02:11]}  Qc7 {[%clk 0:02:32]} 16. Nxd4 {[%clk 0:02:03]}  Bxg2 {[%clk 0:02:20]} 17. Nb5 {[%clk 0:02:03]}  Qc6 {[%clk 0:02:18]} 18. Nxd6+ {[%clk 0:02:03]}  Ke7 {[%clk 0:02:16]} 19. Bxf6+ {[%clk 0:01:52]}  gxf6 {[%clk 0:02:15]} 20. Nf5+ {[%clk 0:01:41]}  exf5 {[%clk 0:02:13]} 21. Re1+ {[%clk 0:01:41]}  Kf8 {[%clk 0:02:04]} 22. Qh5 {[%clk 0:01:34]}  Kg7 {[%clk 0:01:47]} 23. Qxf5 {[%clk 0:01:25]}  h5 {[%clk 0:01:33]} 24. Nxc5 {[%clk 0:01:20]}  Bf3 {[%clk 0:01:24]} 25. Re7 {[%clk 0:00:37]}  Bg4 {[%clk 0:01:13]} 26. Ne6+ {[%clk 0:00:09]}  Qxe6 {[%clk 0:01:12]} 27. Rxe6 {[%clk 0:00:07]}  Bxf5 {[%clk 0:01:10]} 28. Rd6 {[%clk 0:00:08]}  Nd7 {[%clk 0:01:05]} 29. c4 {[%clk 0:00:08]}  Rb8 {[%clk 0:01:04]} 30. d4 {[%clk 0:00:06]}  Rxb3 {[%clk 0:01:03]} 31. c5 {[%clk 0:00:06]}  Rc3 {[%clk 0:01:01]} 32. c6 {[%clk 0:00:06]}  Nf8 {[%clk 0:01:00]} 33. d5 {[%clk 0:00:06]}  Rc5 {[%clk 0:00:58]} 34. Rd8 {[%clk 0:00:04]}  Be4 {[%clk 0:00:57]} 35. f3 {[%clk 0:00:01]}  Bxd5 {[%clk 0:00:56]} 36. c7 {[%clk 0:00:01]}  Be6 {[%clk 0:00:49]} 0-1


[Site "https://www.chess.com"]

[Event "Titled Tuesday Blitz May 4 2021"]
[White "Lagunow, Raphael"]
[Black "Grineva, Marianna"]
[WhiteFideId "24652644"]
[BlackFideId "14102013"]
[WhiteElo "2400"]
[BlackElo "1925"]
[Result "1-0"]
[Round "02"]
[TimeControl "180+1"]
[Date "2021.05.04"]
[WhiteClock "0:00:26"]
[BlackClock "0:00:40"]

1. e4 {[%clk 0:02:58]}  c5 {[%clk 0:02:59]} 2. Nf3 {[%clk 0:02:57]}  d6 {[%clk 0:03:00]} 3. d4 {[%clk 0:02:55]}  cxd4 {[%clk 0:03:01]} 4. Nxd4 {[%clk 0:02:55]}  Nf6 {[%clk 0:03:01]} 5. Nc3 {[%clk 0:02:54]}  Nc6 {[%clk 0:02:57]} 6. Bg5 {[%clk 0:02:54]}  e6 {[%clk 0:02:54]} 7. Qd2 {[%clk 0:02:53]}  Be7 {[%clk 0:02:49]} 8. O-O-O {[%clk 0:02:52]}  a6 {[%clk 0:02:50]} 9. f4 {[%clk 0:02:49]}  Qc7 {[%clk 0:02:46]} 10. Kb1 {[%clk 0:02:41]}  h6 {[%clk 0:02:45]} 11. Bxf6 {[%clk 0:02:40]}  gxf6 {[%clk 0:02:42]} 12. f5 {[%clk 0:02:38]}  Nxd4 {[%clk 0:02:29]} 13. Qxd4 {[%clk 0:02:37]}  Qc5 {[%clk 0:02:30]} 14. Qxc5 {[%clk 0:01:47]}  dxc5 {[%clk 0:02:30]} 15. a4 {[%clk 0:01:47]}  b6 {[%clk 0:02:24]} 16. Bc4 {[%clk 0:01:46]}  Bd7 {[%clk 0:02:20]} 17. Rhf1 {[%clk 0:01:32]}  Rg8 {[%clk 0:02:13]} 18. g3 {[%clk 0:01:32]}  h5 {[%clk 0:02:04]} 19. Rf4 {[%clk 0:01:32]}  Rg4 {[%clk 0:02:02]} 20. Rxg4 {[%clk 0:01:28]}  hxg4 {[%clk 0:02:03]} 21. fxe6 {[%clk 0:01:22]}  fxe6 {[%clk 0:02:01]} 22. e5 {[%clk 0:01:22]}  f5 {[%clk 0:01:58]} 23. h4 {[%clk 0:01:22]}  gxh3 {[%clk 0:01:50]} 24. Rh1 {[%clk 0:01:20]}  Kf7 {[%clk 0:01:50]} 25. Rxh3 {[%clk 0:01:19]}  Kg7 {[%clk 0:01:45]} 26. g4 {[%clk 0:01:11]}  Rf8 {[%clk 0:01:35]} 27. Bxa6 {[%clk 0:00:56]}  fxg4 {[%clk 0:01:33]} 28. Rg3 {[%clk 0:00:56]}  Rf4 {[%clk 0:01:31]} 29. Be2 {[%clk 0:00:56]}  Bh4 {[%clk 0:01:25]} 30. Rxg4+ {[%clk 0:00:56]}  Rxg4 {[%clk 0:01:25]} 31. Bxg4 {[%clk 0:00:56]}  Bg3 {[%clk 0:01:26]} 32. a5 {[%clk 0:00:51]}  bxa5 {[%clk 0:01:25]} 33. Ne4 {[%clk 0:00:51]}  Bxe5 {[%clk 0:01:21]} 34. Nxc5 {[%clk 0:00:51]}  Bc8 {[%clk 0:01:19]} 35. Bxe6 {[%clk 0:00:43]}  Bxe6 {[%clk 0:01:17]} 36. Nxe6+ {[%clk 0:00:42]}  Kf6 {[%clk 0:01:18]} 37. Nc5 {[%clk 0:00:42]}  Ke7 {[%clk 0:01:11]} 38. Ka2 {[%clk 0:00:41]}  Bd4 {[%clk 0:01:07]} 39. Nb3 {[%clk 0:00:41]}  Bb6 {[%clk 0:01:06]} 40. Ka3 {[%clk 0:00:41]}  Kd6 {[%clk 0:01:07]} 41. Ka4 {[%clk 0:00:41]}  Kd5 {[%clk 0:01:03]} 42. Nxa5 {[%clk 0:00:41]}  Bd4 {[%clk 0:01:00]} 43. b4 {[%clk 0:00:37]}  Kd6 {[%clk 0:00:56]} 44. c4 {[%clk 0:00:37]}  Kc7 {[%clk 0:00:56]} 45. Kb5 {[%clk 0:00:36]}  Bc3 {[%clk 0:00:55]} 46. c5 {[%clk 0:00:35]}  Be5 {[%clk 0:00:53]} 47. Nc4 {[%clk 0:00:35]}  Bd4 {[%clk 0:00:54]} 48. Nd2 {[%clk 0:00:30]}  Bc3 {[%clk 0:00:53]} 49. Nb3 {[%clk 0:00:29]}  Be1 {[%clk 0:00:52]} 50. Kc4 {[%clk 0:00:29]}  Bf2 {[%clk 0:00:48]} 51. b5 {[%clk 0:00:29]}  Kb7 {[%clk 0:00:48]} 52. b6 {[%clk 0:00:28]}  Ka6 {[%clk 0:00:46]} 53. Nd4 {[%clk 0:00:28]}  Kb7 {[%clk 0:00:44]} 54. Ne6 {[%clk 0:00:26]}  Kc6 {[%clk 0:00:42]} 55. Nd8+ {[%clk 0:00:25]}  Kd7 {[%clk 0:00:43]} 56. Nf7 {[%clk 0:00:24]}  Kc6 {[%clk 0:00:41]} 57. Ne5+ {[%clk 0:00:24]}  Kb7 {[%clk 0:00:42]} 58. Kb5 {[%clk 0:00:24]}  Bg3 {[%clk 0:00:38]} 59. c6+ {[%clk 0:00:25]}  Kb8 {[%clk 0:00:38]} 60. Nd7+ {[%clk 0:00:25]}  Kc8 {[%clk 0:00:38]} 61. b7+ {[%clk 0:00:24]}  Kd8 {[%clk 0:00:39]} 62. b8=Q+ {[%clk 0:00:24]}  Bxb8 {[%clk 0:00:39]} 63. Nxb8 {[%clk 0:00:25]}  Kc7 {[%clk 0:00:39]} 64. Na6+ {[%clk 0:00:25]}  Kc8 {[%clk 0:00:40]} 65. Kb6 {[%clk 0:00:25]}  Kd8 {[%clk 0:00:40]} 66. Kb7 {[%clk 0:00:26]} 1-0


[Site "https://www.chess.com"]

[Event "Titled Tuesday Blitz May 4 2021"]
[White "Le, Tuan Minh"]
[Black "Trent, Lawrence"]
[WhiteFideId "12401153"]
[BlackFideId "408638"]
[WhiteElo "2450"]
[BlackElo "2474"]
[Result "1-0"]
[Round "02"]
[TimeControl "180+1"]
[Date "2021.05.04"]
[WhiteClock "0:01:06"]
[BlackClock "0:00:57"]

1. d4 {[%clk 0:03:00]}  Nf6 {[%clk 0:02:58]} 2. Nf3 {[%clk 0:03:00]}  c5 {[%clk 0:02:58]} 3. c3 {[%clk 0:02:57]}  g6 {[%clk 0:02:57]} 4. Bg5 {[%clk 0:02:53]}  Bg7 {[%clk 0:02:55]} 5. Nbd2 {[%clk 0:02:53]}  O-O {[%clk 0:02:54]} 6. dxc5 {[%clk 0:02:53]}  b6 {[%clk 0:02:53]} 7. cxb6 {[%clk 0:02:49]}  Qxb6 {[%clk 0:02:52]} 8. Qb3 {[%clk 0:02:49]}  Qc7 {[%clk 0:02:50]} 9. e3 {[%clk 0:02:45]}  Nc6 {[%clk 0:02:49]} 10. Be2 {[%clk 0:02:45]}  d6 {[%clk 0:02:48]} 11. O-O {[%clk 0:02:44]}  Rb8 {[%clk 0:02:48]} 12. Qa3 {[%clk 0:02:44]}  h6 {[%clk 0:02:36]} 13. Bh4 {[%clk 0:02:43]}  g5 {[%clk 0:02:36]} 14. Bg3 {[%clk 0:02:42]}  Nh5 {[%clk 0:02:36]} 15. Rfd1 {[%clk 0:02:25]}  f5 {[%clk 0:02:35]} 16. Nd4 {[%clk 0:02:25]}  Nxg3 {[%clk 0:02:35]} 17. hxg3 {[%clk 0:02:25]}  Ne5 {[%clk 0:02:21]} 18. Rac1 {[%clk 0:02:21]}  e6 {[%clk 0:02:12]} 19. N4f3 {[%clk 0:02:19]}  Ng4 {[%clk 0:02:11]} 20. Nb3 {[%clk 0:02:10]}  Bb7 {[%clk 0:02:07]} 21. Qxd6 {[%clk 0:02:09]}  Qxd6 {[%clk 0:02:06]} 22. Rxd6 {[%clk 0:02:09]}  Bd5 {[%clk 0:02:07]} 23. c4 {[%clk 0:02:05]}  Be4 {[%clk 0:02:00]} 24. Rxe6 {[%clk 0:02:03]}  Bxb2 {[%clk 0:01:59]} 25. Rd1 {[%clk 0:02:04]}  Rf6 {[%clk 0:01:56]} 26. Re7 {[%clk 0:01:58]}  Ra6 {[%clk 0:01:51]} 27. Nc5 {[%clk 0:01:39]}  Rxa2 {[%clk 0:01:48]} 28. Nxe4 {[%clk 0:01:39]}  fxe4 {[%clk 0:01:48]} 29. c5 {[%clk 0:01:30]}  Ra4 {[%clk 0:01:38]} 30. Nxg5 {[%clk 0:01:20]}  Nxf2 {[%clk 0:01:34]} 31. Kxf2 {[%clk 0:01:07]}  hxg5 {[%clk 0:01:33]} 32. c6 {[%clk 0:01:08]}  Rf8+ {[%clk 0:01:19]} 33. Kg1 {[%clk 0:01:08]}  Bf6 {[%clk 0:01:14]} 34. Red7 {[%clk 0:01:04]}  Be5 {[%clk 0:01:05]} 35. R7d5 {[%clk 0:01:04]}  Re8 {[%clk 0:00:58]} 36. Rxe5 {[%clk 0:01:05]}  Rxe5 {[%clk 0:00:57]} 37. c7 {[%clk 0:01:06]} 1-0


[Site "https://www.chess.com"]

[Event "Titled Tuesday Blitz May 4 2021"]
[White "Lewtak, Damian"]
[Black "Csonka, Balazs"]
[WhiteFideId "1141724"]
[BlackFideId "742910"]
[WhiteElo "2291"]
[BlackElo "2404"]
[Result "0-1"]
[Round "02"]
[TimeControl "180+1"]
[Date "2021.05.04"]
[WhiteClock "0:00:24"]
[BlackClock "0:00:23"]

1. e4 {[%clk 0:03:00]}  e6 {[%clk 0:02:59]} 2. d3 {[%clk 0:02:56]}  c5 {[%clk 0:02:57]} 3. Qe2 {[%clk 0:02:56]}  Nc6 {[%clk 0:02:57]} 4. Nf3 {[%clk 0:02:55]}  g6 {[%clk 0:02:56]} 5. g3 {[%clk 0:02:53]}  Bg7 {[%clk 0:02:55]} 6. Bg2 {[%clk 0:02:53]}  Nge7 {[%clk 0:02:55]} 7. c3 {[%clk 0:02:50]}  O-O {[%clk 0:02:54]} 8. O-O {[%clk 0:02:49]}  b5 {[%clk 0:02:49]} 9. Rd1 {[%clk 0:02:37]}  b4 {[%clk 0:02:40]} 10. d4 {[%clk 0:02:20]}  bxc3 {[%clk 0:02:39]} 11. bxc3 {[%clk 0:02:16]}  cxd4 {[%clk 0:02:39]} 12. cxd4 {[%clk 0:02:16]}  d5 {[%clk 0:02:35]} 13. e5 {[%clk 0:02:14]}  a5 {[%clk 0:02:34]} 14. g4 {[%clk 0:02:12]}  Ba6 {[%clk 0:02:31]} 15. Qe3 {[%clk 0:02:10]}  Nb4 {[%clk 0:02:27]} 16. Na3 {[%clk 0:02:05]}  Qd7 {[%clk 0:02:20]} 17. h4 {[%clk 0:01:55]}  Rfc8 {[%clk 0:02:08]} 18. Bd2 {[%clk 0:01:42]}  Qa4 {[%clk 0:01:56]} 19. Qb3 {[%clk 0:01:29]}  Qd7 {[%clk 0:01:50]} 20. Qe3 {[%clk 0:01:28]}  Nd3 {[%clk 0:01:46]} 21. Bf1 {[%clk 0:01:24]}  Nb2 {[%clk 0:01:37]} 22. Bxa6 {[%clk 0:01:22]}  Rxa6 {[%clk 0:01:38]} 23. Rdc1 {[%clk 0:01:18]}  Nc4 {[%clk 0:01:30]} 24. Nxc4 {[%clk 0:01:15]}  dxc4 {[%clk 0:01:30]} 25. Rc2 {[%clk 0:01:12]}  Nd5 {[%clk 0:01:28]} 26. Qe4 {[%clk 0:01:08]}  c3 {[%clk 0:01:21]} 27. Rac1 {[%clk 0:01:05]}  Rac6 {[%clk 0:01:12]} 28. Be1 {[%clk 0:01:04]}  Bh6 {[%clk 0:00:59]} 29. g5 {[%clk 0:01:01]}  Bf8 {[%clk 0:00:58]} 30. h5 {[%clk 0:00:51]}  Ba3 {[%clk 0:00:55]} 31. hxg6 {[%clk 0:00:51]}  fxg6 {[%clk 0:00:46]} 32. Nh2 {[%clk 0:00:38]}  Bxc1 {[%clk 0:00:39]} 33. Rxc1 {[%clk 0:00:38]}  Qf7 {[%clk 0:00:36]} 34. Ng4 {[%clk 0:00:33]}  Qf4 {[%clk 0:00:35]} 35. Nf6+ {[%clk 0:00:31]}  Kf7 {[%clk 0:00:26]} 36. Qxf4 {[%clk 0:00:25]}  Nxf4 {[%clk 0:00:26]} 37. Rc2 {[%clk 0:00:25]}  Nd3 {[%clk 0:00:23]} 38. Kf1 {[%clk 0:00:24]}  Nb4 {[%clk 0:00:23]} 0-1


[Site "https://www.chess.com"]

[Event "Titled Tuesday Blitz May 4 2021"]
[White "Loy, Konstantin"]
[Black "Funderburg, John T"]
[WhiteFideId "14122499"]
[BlackFideId "2004992"]
[WhiteElo "2084"]
[BlackElo "2063"]
[Result "1-0"]
[Round "02"]
[TimeControl "180+1"]
[Date "2021.05.04"]
[WhiteClock "0:01:58"]
[BlackClock "0:01:37"]

1. e4 {[%clk 0:03:00]}  e6 {[%clk 0:02:59]} 2. d3 {[%clk 0:03:00]}  d5 {[%clk 0:02:59]} 3. Nd2 {[%clk 0:03:01]}  c5 {[%clk 0:02:51]} 4. Ngf3 {[%clk 0:03:01]}  Nc6 {[%clk 0:02:51]} 5. g3 {[%clk 0:03:01]}  Bd6 {[%clk 0:02:51]} 6. Bg2 {[%clk 0:03:01]}  Nge7 {[%clk 0:02:51]} 7. O-O {[%clk 0:03:01]}  O-O {[%clk 0:02:52]} 8. Nh4 {[%clk 0:03:01]}  b6 {[%clk 0:02:39]} 9. f4 {[%clk 0:03:01]}  dxe4 {[%clk 0:02:32]} 10. dxe4 {[%clk 0:02:50]}  e5 {[%clk 0:02:08]} 11. c3 {[%clk 0:02:16]}  exf4 {[%clk 0:01:47]} 12. gxf4 {[%clk 0:02:15]}  Ng6 {[%clk 0:01:37]} 13. Nxg6 {[%clk 0:02:08]}  hxg6 {[%clk 0:01:37]} 14. e5 {[%clk 0:01:58]} 1-0


[Site "https://www.chess.com"]

[Event "Titled Tuesday Blitz May 4 2021"]
[White "Luberanski, Jakub"]
[Black "Zverev, Lev"]
[WhiteFideId "21830509"]
[BlackFideId "24250775"]
[WhiteElo "2078"]
[BlackElo "2107"]
[Result "0-1"]
[Round "02"]
[TimeControl "180+1"]
[Date "2021.05.04"]
[WhiteClock "0:00:08"]
[BlackClock "0:01:25"]

1. Nf3 {[%clk 0:02:53]}  Nf6 {[%clk 0:02:58]} 2. g3 {[%clk 0:02:54]}  d5 {[%clk 0:02:57]} 3. Bg2 {[%clk 0:02:54]}  e6 {[%clk 0:02:58]} 4. O-O {[%clk 0:02:55]}  Be7 {[%clk 0:02:58]} 5. d3 {[%clk 0:02:56]}  O-O {[%clk 0:02:58]} 6. Nbd2 {[%clk 0:02:56]}  c5 {[%clk 0:02:59]} 7. e4 {[%clk 0:02:57]}  Nc6 {[%clk 0:03:00]} 8. Re1 {[%clk 0:02:56]}  d4 {[%clk 0:02:58]} 9. Rf1 {[%clk 0:02:47]}  e5 {[%clk 0:02:58]} 10. Ne1 {[%clk 0:02:47]}  b5 {[%clk 0:02:51]} 11. a4 {[%clk 0:02:47]}  Ba6 {[%clk 0:02:46]} 12. axb5 {[%clk 0:02:43]}  Bxb5 {[%clk 0:02:47]} 13. Nc4 {[%clk 0:02:43]}  Bxc4 {[%clk 0:02:44]} 14. dxc4 {[%clk 0:02:44]}  Ne8 {[%clk 0:02:39]} 15. Nd3 {[%clk 0:02:42]}  Nd6 {[%clk 0:02:39]} 16. b3 {[%clk 0:02:35]}  Qb6 {[%clk 0:02:33]} 17. f4 {[%clk 0:02:26]}  f6 {[%clk 0:02:29]} 18. Bh3 {[%clk 0:02:17]}  Nxe4 {[%clk 0:02:27]} 19. Be6+ {[%clk 0:02:08]}  Kh8 {[%clk 0:02:26]} 20. Bf5 {[%clk 0:02:07]}  Nd6 {[%clk 0:02:19]} 21. Qh5 {[%clk 0:01:27]}  Nxf5 {[%clk 0:02:18]} 22. Qxf5 {[%clk 0:01:28]}  Bd6 {[%clk 0:02:07]} 23. Bd2 {[%clk 0:01:04]}  Rae8 {[%clk 0:02:03]} 24. fxe5 {[%clk 0:01:02]}  fxe5 {[%clk 0:02:04]} 25. Qe4 {[%clk 0:01:02]}  Qc7 {[%clk 0:02:01]} 26. Rxf8+ {[%clk 0:00:52]}  Rxf8 {[%clk 0:02:00]} 27. Ra6 {[%clk 0:00:52]}  Nb8 {[%clk 0:01:51]} 28. Ra1 {[%clk 0:00:43]}  Nd7 {[%clk 0:01:49]} 29. Ba5 {[%clk 0:00:41]}  Qc8 {[%clk 0:01:46]} 30. Qd5 {[%clk 0:00:41]}  Bc7 {[%clk 0:01:41]} 31. Bd2 {[%clk 0:00:33]}  Nf6 {[%clk 0:01:35]} 32. Qxc5 {[%clk 0:00:31]}  e4 {[%clk 0:01:35]} 33. Nf4 {[%clk 0:00:31]}  Bb6 {[%clk 0:01:34]} 34. Qxc8 {[%clk 0:00:30]}  Rxc8 {[%clk 0:01:35]} 35. Kg2 {[%clk 0:00:21]}  Rc6 {[%clk 0:01:30]} 36. Rf1 {[%clk 0:00:15]}  g5 {[%clk 0:01:28]} 37. Nd5 {[%clk 0:00:15]}  Nxd5 {[%clk 0:01:28]} 38. cxd5 {[%clk 0:00:16]}  Rxc2 {[%clk 0:01:28]} 39. Rf2 {[%clk 0:00:15]}  d3 {[%clk 0:01:26]} 40. Rf8+ {[%clk 0:00:08]}  Kg7 {[%clk 0:01:25]} 0-1


[Site "https://www.chess.com"]

[Event "Titled Tuesday Blitz May 4 2021"]
[White "Madaminov, Mukhiddin"]
[Black "Iljushina, Olga"]
[WhiteFideId "14210703"]
[BlackFideId "4152280"]
[WhiteElo "1747"]
[BlackElo "1967"]
[Result "1-0"]
[Round "02"]
[TimeControl "180+1"]
[Date "2021.05.04"]
[WhiteClock "0:00:22"]
[BlackClock "0:00:14"]

1. e4 {[%clk 0:03:00]}  c5 {[%clk 0:02:57]} 2. Nf3 {[%clk 0:03:00]}  Nc6 {[%clk 0:02:57]} 3. Bb5 {[%clk 0:03:00]}  g6 {[%clk 0:02:56]} 4. O-O {[%clk 0:03:00]}  Bg7 {[%clk 0:02:54]} 5. Re1 {[%clk 0:03:00]}  e5 {[%clk 0:02:54]} 6. c3 {[%clk 0:02:53]}  Nge7 {[%clk 0:02:54]} 7. Bf1 {[%clk 0:02:47]}  O-O {[%clk 0:02:45]} 8. Na3 {[%clk 0:02:47]}  d5 {[%clk 0:02:43]} 9. d3 {[%clk 0:02:47]}  dxe4 {[%clk 0:02:39]} 10. dxe4 {[%clk 0:02:48]}  Bg4 {[%clk 0:02:36]} 11. h3 {[%clk 0:02:46]}  Qxd1 {[%clk 0:02:34]} 12. Rxd1 {[%clk 0:02:46]}  Bxf3 {[%clk 0:02:34]} 13. gxf3 {[%clk 0:02:47]}  Rfd8 {[%clk 0:02:33]} 14. Be3 {[%clk 0:02:45]}  b6 {[%clk 0:02:32]} 15. Bc4 {[%clk 0:02:37]}  Na5 {[%clk 0:02:26]} 16. Kf1 {[%clk 0:02:35]}  Nxc4 {[%clk 0:02:24]} 17. Nxc4 {[%clk 0:02:36]}  f6 {[%clk 0:02:04]} 18. a4 {[%clk 0:02:35]}  Nc6 {[%clk 0:01:48]} 19. Ke2 {[%clk 0:02:31]}  Bf8 {[%clk 0:01:41]} 20. Rxd8 {[%clk 0:02:23]}  Rxd8 {[%clk 0:01:40]} 21. Rd1 {[%clk 0:02:24]}  Rxd1 {[%clk 0:01:33]} 22. Kxd1 {[%clk 0:02:25]}  Kf7 {[%clk 0:01:32]} 23. Kc2 {[%clk 0:02:23]}  Ke6 {[%clk 0:01:31]} 24. f4 {[%clk 0:02:20]}  Be7 {[%clk 0:01:22]} 25. Kd3 {[%clk 0:02:08]}  Bd8 {[%clk 0:01:16]} 26. fxe5 {[%clk 0:02:07]}  fxe5 {[%clk 0:01:11]} 27. Na3 {[%clk 0:02:00]}  a6 {[%clk 0:01:09]} 28. f3 {[%clk 0:01:49]}  Bc7 {[%clk 0:01:01]} 29. Kc4 {[%clk 0:01:43]}  Na5+ {[%clk 0:01:00]} 30. Kd3 {[%clk 0:01:43]}  Nc6 {[%clk 0:00:59]} 31. Bg5 {[%clk 0:01:35]}  Bd6 {[%clk 0:00:51]} 32. Nc4 {[%clk 0:01:33]}  Bc7 {[%clk 0:00:51]} 33. Ne3 {[%clk 0:01:33]}  b5 {[%clk 0:00:51]} 34. Nd5 {[%clk 0:01:31]}  c4+ {[%clk 0:00:49]} 35. Kc2 {[%clk 0:01:28]}  Ba5 {[%clk 0:00:48]} 36. b4 {[%clk 0:01:12]}  cxb3+ {[%clk 0:00:47]} 37. Kxb3 {[%clk 0:01:12]}  Kd6 {[%clk 0:00:38]} 38. Be3 {[%clk 0:01:02]}  Bd8 {[%clk 0:00:37]} 39. axb5 {[%clk 0:00:54]}  axb5 {[%clk 0:00:36]} 40. Bf2 {[%clk 0:00:55]}  h5 {[%clk 0:00:36]} 41. Be3 {[%clk 0:00:54]}  g5 {[%clk 0:00:36]} 42. Bf2 {[%clk 0:00:54]}  Ne7 {[%clk 0:00:28]} 43. Nf6 {[%clk 0:00:49]}  h4 {[%clk 0:00:24]} 44. Be3 {[%clk 0:00:39]}  Ng6 {[%clk 0:00:23]} 45. Nd5 {[%clk 0:00:31]}  Nf4 {[%clk 0:00:23]} 46. Nxf4 {[%clk 0:00:29]}  gxf4 {[%clk 0:00:21]} 47. Bf2 {[%clk 0:00:28]}  Kc6 {[%clk 0:00:20]} 48. c4 {[%clk 0:00:23]}  bxc4+ {[%clk 0:00:19]} 49. Kxc4 {[%clk 0:00:24]}  Be7 {[%clk 0:00:19]} 50. Bg1 {[%clk 0:00:24]}  Bf6 {[%clk 0:00:20]} 51. Bc5 {[%clk 0:00:25]}  Bd8 {[%clk 0:00:19]} 52. Bf8 {[%clk 0:00:25]}  Bf6 {[%clk 0:00:19]} 53. Kb4 {[%clk 0:00:25]}  Kb6 {[%clk 0:00:19]} 54. Bc5+ {[%clk 0:00:21]}  Kc6 {[%clk 0:00:19]} 55. Bf2 {[%clk 0:00:19]}  Be7+ {[%clk 0:00:17]} 56. Kc4 {[%clk 0:00:20]}  Bf6 {[%clk 0:00:18]} 57. Be1 {[%clk 0:00:21]}  Be7 {[%clk 0:00:18]} 58. Bc3 {[%clk 0:00:20]}  Bf6 {[%clk 0:00:19]} 59. Bb4 {[%clk 0:00:20]}  Bd8 {[%clk 0:00:18]} 60. Bf8 {[%clk 0:00:20]}  Bf6 {[%clk 0:00:18]} 61. Bh6 {[%clk 0:00:21]}  Kb6 {[%clk 0:00:18]} 62. Kd5 {[%clk 0:00:21]}  Kc7 {[%clk 0:00:17]} 63. Bf8 {[%clk 0:00:21]}  Kd7 {[%clk 0:00:16]} 64. Bd6 {[%clk 0:00:21]}  Bg5 {[%clk 0:00:15]} 65. Bxe5 {[%clk 0:00:22]}  Ke7 {[%clk 0:00:15]} 66. Bd6+ {[%clk 0:00:22]}  Kf6 {[%clk 0:00:15]} 67. Bc7 {[%clk 0:00:22]}  Ke7 {[%clk 0:00:14]} 68. Ke5 {[%clk 0:00:22]} 1-0


[Site "https://www.chess.com"]

[Event "Titled Tuesday Blitz May 4 2021"]
[White "Maiorov, Nikita"]
[Black "Poghosyan, Suren"]
[WhiteFideId "13501720"]
[BlackFideId "13303201"]
[WhiteElo "2440"]
[BlackElo "2314"]
[Result "1-0"]
[Round "02"]
[TimeControl "180+1"]
[Date "2021.05.04"]
[WhiteClock "0:00:20"]
[BlackClock "0:00:03"]

1. d4 {[%clk 0:03:00]}  Nf6 {[%clk 0:02:59]} 2. c4 {[%clk 0:03:00]}  e6 {[%clk 0:02:59]} 3. Nf3 {[%clk 0:02:59]}  d5 {[%clk 0:02:58]} 4. Nc3 {[%clk 0:02:58]}  Bb4 {[%clk 0:02:57]} 5. Bg5 {[%clk 0:02:56]}  h6 {[%clk 0:02:57]} 6. Bxf6 {[%clk 0:02:55]}  Qxf6 {[%clk 0:02:58]} 7. Qa4+ {[%clk 0:02:55]}  Nc6 {[%clk 0:02:58]} 8. e3 {[%clk 0:02:55]}  O-O {[%clk 0:02:57]} 9. Be2 {[%clk 0:02:55]}  Bxc3+ {[%clk 0:02:57]} 10. bxc3 {[%clk 0:02:54]}  Bd7 {[%clk 0:02:56]} 11. Qa3 {[%clk 0:02:42]}  dxc4 {[%clk 0:02:36]} 12. Bxc4 {[%clk 0:02:41]}  e5 {[%clk 0:02:37]} 13. O-O {[%clk 0:02:41]}  Bg4 {[%clk 0:02:35]} 14. Nd2 {[%clk 0:02:40]}  Qg6 {[%clk 0:02:32]} 15. Rfe1 {[%clk 0:02:35]}  a6 {[%clk 0:02:26]} 16. Bf1 {[%clk 0:02:27]}  Rad8 {[%clk 0:02:22]} 17. Rab1 {[%clk 0:02:26]}  b6 {[%clk 0:01:43]} 18. Qxa6 {[%clk 0:01:42]}  Ra8 {[%clk 0:01:31]} 19. Qc4 {[%clk 0:01:40]}  Rfc8 {[%clk 0:00:53]} 20. d5 {[%clk 0:01:32]}  Na5 {[%clk 0:00:53]} 21. Qd3 {[%clk 0:01:28]}  Bf5 {[%clk 0:00:53]} 22. e4 {[%clk 0:01:27]}  Bd7 {[%clk 0:00:53]} 23. Rb2 {[%clk 0:01:25]}  Nb7 {[%clk 0:00:53]} 24. Nb3 {[%clk 0:01:25]}  Ba4 {[%clk 0:00:51]} 25. c4 {[%clk 0:01:24]}  Bxb3 {[%clk 0:00:51]} 26. axb3 {[%clk 0:01:24]}  Nc5 {[%clk 0:00:52]} 27. Qc3 {[%clk 0:01:22]}  Ra3 {[%clk 0:00:47]} 28. Qc2 {[%clk 0:01:22]}  Rca8 {[%clk 0:00:41]} 29. b4 {[%clk 0:01:20]}  Na4 {[%clk 0:00:37]} 30. Rb3 {[%clk 0:01:14]}  Rxb3 {[%clk 0:00:24]} 31. Qxb3 {[%clk 0:01:14]}  b5 {[%clk 0:00:21]} 32. c5 {[%clk 0:01:11]}  Qa6 {[%clk 0:00:16]} 33. Rd1 {[%clk 0:01:06]}  Kh7 {[%clk 0:00:14]} 34. d6 {[%clk 0:01:05]}  cxd6 {[%clk 0:00:15]} 35. Rxd6 {[%clk 0:01:04]}  Qa7 {[%clk 0:00:14]} 36. Bxb5 {[%clk 0:01:03]}  Nxc5 {[%clk 0:00:13]} 37. bxc5 {[%clk 0:01:03]}  Qxc5 {[%clk 0:00:14]} 38. Rd1 {[%clk 0:00:59]}  Rb8 {[%clk 0:00:14]} 39. Rb1 {[%clk 0:00:57]}  f5 {[%clk 0:00:12]} 40. exf5 {[%clk 0:00:56]}  e4 {[%clk 0:00:11]} 41. h3 {[%clk 0:00:55]}  Qxf5 {[%clk 0:00:11]} 42. Rb2 {[%clk 0:00:36]}  Kh8 {[%clk 0:00:10]} 43. Qa4 {[%clk 0:00:33]}  Qe5 {[%clk 0:00:10]} 44. Rb3 {[%clk 0:00:30]}  Rb6 {[%clk 0:00:08]} 45. Bf1 {[%clk 0:00:28]}  Rf6 {[%clk 0:00:06]} 46. Re3 {[%clk 0:00:27]}  Qf5 {[%clk 0:00:06]} 47. Qc2 {[%clk 0:00:23]}  Re6 {[%clk 0:00:05]} 48. Qd2 {[%clk 0:00:22]}  Kh7 {[%clk 0:00:05]} 49. g3 {[%clk 0:00:22]}  Qg5 {[%clk 0:00:04]} 50. Qe1 {[%clk 0:00:21]}  Qe5 {[%clk 0:00:04]} 51. Bg2 {[%clk 0:00:20]}  Qd4 {[%clk 0:00:03]} 52. h4 {[%clk 0:00:20]}  Qd5 {[%clk 0:00:03]} 53. Bxe4+ {[%clk 0:00:20]}  Rxe4 {[%clk 0:00:03]} 54. Rxe4 {[%clk 0:00:20]}  Qf5 {[%clk 0:00:03]} 1-0


[Site "https://www.chess.com"]